[Event "Late-Titled-Tuesday-Blitz-September-12-2023"]
[Site "Chess.com"]
[Date "2023.09.12"]
[Round "1"]
[White "Orest_Vovk"]
[Black "MajorCoast"]
[Result "1-0"]
[WhiteElo "2592"]
[BlackElo "2287"]
[TimeControl "180+1"]
[EndTime "14:06:19 PDT"]
[Termination "Orest_Vovk won by checkmate"]

1. e4 {[%clk 0:02:56.2]} 1... c5 {[%clk 0:02:59.6]} 2. Nf3 {[%clk 0:02:53.5]}
2... e6 {[%clk 0:02:59.4]} 3. a4 {[%clk 0:02:51.9]} 3... Nc6 {[%clk 0:02:57.4]}
4. Bb5 {[%clk 0:02:49]} 4... Nge7 {[%clk 0:02:57.6]} 5. O-O {[%clk 0:02:48.4]}
5... a6 {[%clk 0:02:57.9]} 6. Bxc6 {[%clk 0:02:45.3]} 6... Nxc6 {[%clk
0:02:58.8]} 7. d4 {[%clk 0:02:44.7]} 7... cxd4 {[%clk 0:02:58.1]} 8. Nxd4 {[%clk
0:02:44.1]} 8... Qb6 {[%clk 0:02:45.9]} 9. Nxc6 {[%clk 0:02:38.9]} 9... bxc6
{[%clk 0:02:35.5]} 10. a5 {[%clk 0:02:38.7]} 10... Qc7 {[%clk 0:02:28.3]} 11.
Re1 {[%clk 0:02:26.7]} 11... Be7 {[%clk 0:02:25.1]} 12. Qg4 {[%clk 0:02:24]}
12... Bf6 {[%clk 0:02:10.1]} 13. c3 {[%clk 0:02:08.4]} 13... h5 {[%clk
0:02:06.9]} 14. Qe2 {[%clk 0:02:03.7]} 14... d5 {[%clk 0:02:05.1]} 15. e5 {[%clk
0:02:01.8]} 15... Be7 {[%clk 0:02:00.6]} 16. Nd2 {[%clk 0:01:56.8]} 16... c5
{[%clk 0:01:55.3]} 17. Nf3 {[%clk 0:01:52.4]} 17... Bb7 {[%clk 0:01:50.2]} 18.
Bg5 {[%clk 0:01:45]} 18... Bxg5 {[%clk 0:01:36.6]} 19. Nxg5 {[%clk 0:01:45.9]}
19... Rd8 {[%clk 0:01:17.6]} 20. h4 {[%clk 0:01:34.5]} 20... g6 {[%clk
0:01:14.8]} 21. Qf3 {[%clk 0:01:27.5]} 21... d4 {[%clk 0:01:09.6]} 22. Qf6
{[%clk 0:01:25.4]} 22... O-O {[%clk 0:01:00.4]} 23. g4 {[%clk 0:01:03.9]} 23...
Qc6 {[%clk 0:00:48.1]} 24. Re4 {[%clk 0:00:58.5]} 24... Qd7 {[%clk 0:00:14.2]}
25. gxh5 {[%clk 0:00:54.7]} 25... Bxe4 {[%clk 0:00:13.7]} 26. h6 {[%clk
0:00:51.1]} 26... Rfe8 {[%clk 0:00:02.2]} 27. Qg7# {[%clk 0:00:44.6]} 1-0

[Event "Late-Titled-Tuesday-Blitz-September-12-2023"]
[Site "Chess.com"]
[Date "2023.09.12"]
[Round "1"]
[White "PassedPawnMustPushed"]
[Black "chessisveryfun1264"]
[Result "0-1"]
[WhiteElo "2134"]
[BlackElo "2527"]
[TimeControl "180+1"]
[EndTime "14:06:20 PDT"]
[Termination "chessisveryfun1264 won on time"]

1. e4 {[%clk 0:03:00.9]} 1... e6 {[%clk 0:03:00.3]} 2. d4 {[%clk 0:03:00.4]}
2... d5 {[%clk 0:03:01.2]} 3. Nc3 {[%clk 0:03:00.4]} 3... Bb4 {[%clk 0:02:55.7]}
4. Ne2 {[%clk 0:02:59.9]} 4... Nf6 {[%clk 0:02:53.6]} 5. e5 {[%clk 0:02:57.3]}
5... Nfd7 {[%clk 0:02:53.8]} 6. a3 {[%clk 0:02:57.4]} 6... Be7 {[%clk
0:02:52.2]} 7. f4 {[%clk 0:02:57.3]} 7... c5 {[%clk 0:02:51.6]} 8. Be3 {[%clk
0:02:56.7]} 8... Nc6 {[%clk 0:02:49.8]} 9. dxc5 {[%clk 0:02:55.1]} 9... Bxc5
{[%clk 0:02:49.3]} 10. Nd4 {[%clk 0:02:53.9]} 10... O-O {[%clk 0:02:48]} 11. Na4
{[%clk 0:02:45.4]} 11... Bxd4 {[%clk 0:02:36.9]} 12. Bxd4 {[%clk 0:02:44.3]}
12... Nxd4 {[%clk 0:02:37.8]} 13. Qxd4 {[%clk 0:02:44.3]} 13... f6 {[%clk
0:02:38.5]} 14. O-O-O {[%clk 0:02:38.9]} 14... fxe5 {[%clk 0:02:34.2]} 15. fxe5
{[%clk 0:02:39.8]} 15... Qg5+ {[%clk 0:02:33.7]} 16. Kb1 {[%clk 0:02:35]} 16...
Qxe5 {[%clk 0:02:32.6]} 17. Bb5 {[%clk 0:02:30.9]} 17... Qxd4 {[%clk 0:02:31.7]}
18. Rxd4 {[%clk 0:02:31.8]} 18... Nf6 {[%clk 0:02:31.2]} 19. Re1 {[%clk
0:02:26]} 19... a6 {[%clk 0:02:26.6]} 20. Nb6 {[%clk 0:02:18.9]} 20... Rb8
{[%clk 0:02:18.2]} 21. Bd3 {[%clk 0:02:07.5]} 21... Re8 {[%clk 0:02:13.6]} 22.
Re5 {[%clk 0:01:32.8]} 22... Bd7 {[%clk 0:02:03.2]} 23. c4 {[%clk 0:01:28.3]}
23... Bc6 {[%clk 0:02:00]} 24. g4 {[%clk 0:01:24.8]} 24... Rbd8 {[%clk
0:01:48.1]} 25. g5 {[%clk 0:01:18.5]} 25... Nd7 {[%clk 0:01:41.9]} 26. Nxd7
{[%clk 0:01:17.2]} 26... Rxd7 {[%clk 0:01:42.8]} 27. g6 {[%clk 0:01:05.9]} 27...
hxg6 {[%clk 0:01:36.4]} 28. Bxg6 {[%clk 0:01:06.8]} 28... Ree7 {[%clk
0:01:36.7]} 29. c5 {[%clk 0:01:01]} 29... Rd8 {[%clk 0:01:33.7]} 30. Rh4 {[%clk
0:00:50.8]} 30... Be8 {[%clk 0:01:32.5]} 31. Bh7+ {[%clk 0:00:50.7]} 31... Kf8
{[%clk 0:01:29.7]} 32. Bd3 {[%clk 0:00:20.4]} 32... g6 {[%clk 0:01:22.5]} 33.
Rg5 {[%clk 0:00:05.6]} 33... Kg7 {[%clk 0:01:22.3]} 34. Rhg4 {[%clk 0:00:05.4]}
34... Kf6 {[%clk 0:01:22.2]} 35. Bxg6 {[%clk 0:00:05]} 35... Rg7 {[%clk
0:01:22.8]} 36. h4 {[%clk 0:00:02.7]} 36... Rxg6 {[%clk 0:01:19.6]} 37. Rf4+
{[%clk 0:00:03.2]} 37... Kg7 {[%clk 0:01:20.2]} 38. Re5 {[%clk 0:00:01.4]} 38...
Rg1+ {[%clk 0:01:15.3]} 0-1

[Event "Late-Titled-Tuesday-Blitz-September-12-2023"]
[Site "Chess.com"]
[Date "2023.09.12"]
[Round "1"]
[White "Mikhail_Bryakin"]
[Black "Mikhal867"]
[Result "0-1"]
[WhiteElo "2744"]
[BlackElo "2429"]
[TimeControl "180+1"]
[EndTime "14:06:21 PDT"]
[Termination "Mikhal867 won on time"]

1. Nf3 {[%clk 0:02:56.6]} 1... c5 {[%clk 0:02:56.3]} 2. b3 {[%clk 0:02:55.4]}
2... Nc6 {[%clk 0:02:54.4]} 3. Bb2 {[%clk 0:02:54.9]} 3... d6 {[%clk 0:02:51.3]}
4. e3 {[%clk 0:02:11.9]} 4... e5 {[%clk 0:02:48.5]} 5. Bb5 {[%clk 0:02:10.5]}
5... a6 {[%clk 0:02:44.7]} 6. Bxc6+ {[%clk 0:02:10.7]} 6... bxc6 {[%clk
0:02:45]} 7. O-O {[%clk 0:02:11.6]} 7... f5 {[%clk 0:02:42.2]} 8. c4 {[%clk
0:02:11.8]} 8... Nf6 {[%clk 0:02:38.6]} 9. d4 {[%clk 0:02:12.5]} 9... cxd4
{[%clk 0:02:36.9]} 10. exd4 {[%clk 0:02:13.4]} 10... e4 {[%clk 0:02:37.3]} 11.
Re1 {[%clk 0:02:14]} 11... Be7 {[%clk 0:02:34.5]} 12. d5 {[%clk 0:02:14.7]}
12... exf3 {[%clk 0:02:25.6]} 13. Bxf6 {[%clk 0:02:14]} 13... gxf6 {[%clk
0:02:25.2]} 14. Qxf3 {[%clk 0:02:10.5]} 14... c5 {[%clk 0:02:05.8]} 15. Qh5+
{[%clk 0:02:08.7]} 15... Kd7 {[%clk 0:02:02.3]} 16. Nc3 {[%clk 0:02:07.4]} 16...
Qe8 {[%clk 0:01:52.8]} 17. Qxf5+ {[%clk 0:02:07.1]} 17... Kc7 {[%clk 0:01:52.8]}
18. Qf4 {[%clk 0:02:07.2]} 18... Qd7 {[%clk 0:01:46.2]} 19. Ne4 {[%clk
0:02:07.2]} 19... Qg4 {[%clk 0:01:26.9]} 20. Qxg4 {[%clk 0:02:05.2]} 20... Bxg4
{[%clk 0:01:26.2]} 21. Nxc5 {[%clk 0:02:06.1]} 21... dxc5 {[%clk 0:01:17.7]} 22.
Rxe7+ {[%clk 0:02:06.6]} 22... Kd6 {[%clk 0:01:18.1]} 23. Rae1 {[%clk
0:02:07.5]} 23... Bd7 {[%clk 0:01:11]} 24. R7e3 {[%clk 0:00:08]} 24... Rae8
{[%clk 0:01:07.4]} 25. Kf1 {[%clk 0:00:03.1]} 25... Rxe3 {[%clk 0:01:03.2]} 26.
Rxe3 {[%clk 0:00:04]} 26... Re8 {[%clk 0:01:01.9]} 27. Rf3 {[%clk 0:00:04.5]}
27... Ke5 {[%clk 0:00:59.4]} 28. Re3+ {[%clk 0:00:04.3]} 28... Kd4 {[%clk
0:00:57.7]} 0-1

[Event "Late-Titled-Tuesday-Blitz-September-12-2023"]
[Site "Chess.com"]
[Date "2023.09.12"]
[Round "1"]
[White "Quattroporte300"]
[Black "Hasangatin_Ramil"]
[Result "0-1"]
[WhiteElo "2383"]
[BlackElo "2714"]
[TimeControl "180+1"]
[EndTime "14:06:22 PDT"]
[Termination "Hasangatin_Ramil won by resignation"]

1. e4 {[%clk 0:03:00.9]} 1... d5 {[%clk 0:02:59]} 2. exd5 {[%clk 0:03:00.4]}
2... Qxd5 {[%clk 0:02:59.9]} 3. Nf3 {[%clk 0:03:00.8]} 3... Bg4 {[%clk
0:02:55.3]} 4. Be2 {[%clk 0:03:00.3]} 4... Nc6 {[%clk 0:02:55.1]} 5. h3 {[%clk
0:03:00.8]} 5... Bxf3 {[%clk 0:02:54.3]} 6. Bxf3 {[%clk 0:03:00.4]} 6... Qe5+
{[%clk 0:02:54.6]} 7. Qe2 {[%clk 0:03:00.2]} 7... Qxe2+ {[%clk 0:02:54]} 8. Bxe2
{[%clk 0:03:00.5]} 8... Nd4 {[%clk 0:02:54.4]} 9. Bd1 {[%clk 0:03:00.1]} 9... e5
{[%clk 0:02:54.6]} 10. c3 {[%clk 0:02:59.7]} 10... Ne6 {[%clk 0:02:54.7]} 11. d3
{[%clk 0:02:57]} 11... O-O-O {[%clk 0:02:54.5]} 12. Be2 {[%clk 0:02:54.7]} 12...
Nc5 {[%clk 0:02:54.4]} 13. f4 {[%clk 0:02:01.2]} 13... exf4 {[%clk 0:02:48.8]}
14. d4 {[%clk 0:01:38.4]} 14... Ne6 {[%clk 0:02:48.8]} 15. Bg4 {[%clk
0:01:20.6]} 15... Re8 {[%clk 0:02:32.8]} 16. Bxf4 {[%clk 0:01:16.6]} 16... Nf6
{[%clk 0:02:29.3]} 17. Bxe6+ {[%clk 0:01:08.2]} 17... Rxe6+ {[%clk 0:02:30.2]}
18. Kf2 {[%clk 0:01:04.9]} 18... Ne4+ {[%clk 0:02:29.7]} 19. Kf3 {[%clk
0:01:04.9]} 19... g5 {[%clk 0:02:26.1]} 20. Nd2 {[%clk 0:00:55]} 20... Rf6
{[%clk 0:02:07.5]} 21. Nxe4 {[%clk 0:00:50.3]} 21... Rxf4+ {[%clk 0:02:07.3]}
22. Ke3 {[%clk 0:00:51]} 22... Be7 {[%clk 0:01:57.3]} 23. Rhf1 {[%clk
0:00:47.7]} 23... f5 {[%clk 0:01:57.1]} 24. Ng3 {[%clk 0:00:43]} 24... Rxf1
{[%clk 0:01:55.7]} 25. Nxf1 {[%clk 0:00:43.1]} 25... Bd6 {[%clk 0:01:52.5]} 26.
Re1 {[%clk 0:00:30.3]} 26... Re8+ {[%clk 0:01:47.2]} 27. Kf2 {[%clk 0:00:30.2]}
27... Rxe1 {[%clk 0:01:43.1]} 28. Kxe1 {[%clk 0:00:31.1]} 28... Kd7 {[%clk
0:01:43.5]} 29. Ne3 {[%clk 0:00:29.9]} 29... Ke6 {[%clk 0:01:42.7]} 30. Kf2
{[%clk 0:00:29.5]} 30... h5 {[%clk 0:01:41.8]} 31. Nc4 {[%clk 0:00:20.5]} 31...
b5 {[%clk 0:01:38.3]} 32. Nxd6 {[%clk 0:00:20.2]} 32... cxd6 {[%clk 0:01:38.1]}
33. b3 {[%clk 0:00:19.4]} 33... d5 {[%clk 0:01:29]} 34. Ke3 {[%clk 0:00:19.5]}
34... f4+ {[%clk 0:01:28]} 35. Kd3 {[%clk 0:00:18.5]} 35... g4 {[%clk 0:01:28]}
36. hxg4 {[%clk 0:00:18.1]} 36... hxg4 {[%clk 0:01:28.9]} 37. a4 {[%clk
0:00:13.7]} 37... bxa4 {[%clk 0:01:26]} 38. bxa4 {[%clk 0:00:13.9]} 38... Kf5
{[%clk 0:01:25.9]} 39. c4 {[%clk 0:00:13]} 39... dxc4+ {[%clk 0:01:21.9]} 40.
Kxc4 {[%clk 0:00:13.2]} 40... f3 {[%clk 0:01:22]} 41. gxf3 {[%clk 0:00:13.1]}
41... g3 {[%clk 0:01:21.5]} 42. d5 {[%clk 0:00:12.8]} 42... g2 {[%clk
0:01:21.7]} 43. d6 {[%clk 0:00:13.3]} 43... Ke6 {[%clk 0:01:21.7]} 0-1

[Event "Late-Titled-Tuesday-Blitz-September-12-2023"]
[Site "Chess.com"]
[Date "2023.09.12"]
[Round "1"]
[White "subham777"]
[Black "ChEsper99"]
[Result "1-0"]
[WhiteElo "2544"]
[BlackElo "2234"]
[TimeControl "180+1"]
[EndTime "14:06:25 PDT"]
[Termination "subham777 won on time"]

1. e4 {[%clk 0:02:57.8]} 1... c5 {[%clk 0:03:00.1]} 2. Nf3 {[%clk 0:02:57.2]}
2... d6 {[%clk 0:03:00.3]} 3. d4 {[%clk 0:02:57]} 3... cxd4 {[%clk 0:03:01.2]}
4. Qxd4 {[%clk 0:02:57.6]} 4... Nc6 {[%clk 0:03:00.4]} 5. Bb5 {[%clk 0:02:57.1]}
5... Bd7 {[%clk 0:02:42]} 6. Bxc6 {[%clk 0:02:55.9]} 6... Bxc6 {[%clk
0:02:41.3]} 7. c4 {[%clk 0:02:54.8]} 7... Nf6 {[%clk 0:02:30]} 8. Nc3 {[%clk
0:02:53]} 8... g6 {[%clk 0:02:29.8]} 9. Bg5 {[%clk 0:02:52.6]} 9... Bg7 {[%clk
0:02:19.9]} 10. O-O {[%clk 0:02:51.5]} 10... O-O {[%clk 0:02:17.9]} 11. Qd3
{[%clk 0:02:50.7]} 11... h6 {[%clk 0:02:08.1]} 12. Bh4 {[%clk 0:02:47.6]} 12...
Rc8 {[%clk 0:02:03.3]} 13. Rac1 {[%clk 0:02:44.5]} 13... Qb6 {[%clk 0:01:53.1]}
14. b3 {[%clk 0:02:39.8]} 14... Rfe8 {[%clk 0:01:52.8]} 15. Nd5 {[%clk 0:02:30]}
15... Bxd5 {[%clk 0:01:37.6]} 16. exd5 {[%clk 0:02:30.9]} 16... Nd7 {[%clk
0:01:34.4]} 17. Rfe1 {[%clk 0:02:27.9]} 17... Ne5 {[%clk 0:01:30.1]} 18. Nxe5
{[%clk 0:02:21.9]} 18... Bxe5 {[%clk 0:01:31]} 19. Bg3 {[%clk 0:02:06.4]} 19...
Bxg3 {[%clk 0:01:27.7]} 20. hxg3 {[%clk 0:02:07.3]} 20... a5 {[%clk 0:01:13.7]}
21. Re4 {[%clk 0:02:00.7]} 21... a4 {[%clk 0:01:05]} 22. Rce1 {[%clk 0:01:56]}
22... axb3 {[%clk 0:00:58.1]} 23. axb3 {[%clk 0:01:56.9]} 23... Qc7 {[%clk
0:00:47]} 24. Rg4 {[%clk 0:01:46]} 24... Kg7 {[%clk 0:00:28]} 25. Re6 {[%clk
0:01:29.2]} 25... g5 {[%clk 0:00:13.2]} 26. Qd4+ {[%clk 0:01:11]} 26... f6
{[%clk 0:00:09.4]} 27. Rge4 {[%clk 0:01:09.4]} 27... Qd7 {[%clk 0:00:06.3]} 28.
f4 {[%clk 0:01:05]} 28... b5 {[%clk 0:00:05.7]} 29. fxg5 {[%clk 0:01:02.5]}
29... hxg5 {[%clk 0:00:06.4]} 30. Rg4 {[%clk 0:01:02.4]} 30... Kf7 {[%clk
0:00:03.9]} 31. Qe4 {[%clk 0:01:01.7]} 31... Rh8 {[%clk 0:00:02.6]} 32. Qe3
{[%clk 0:00:56.6]} 32... bxc4 {[%clk 0:00:02.4]} 33. bxc4 {[%clk 0:00:55.9]}
33... Rc7 {[%clk 0:00:01.7]} 34. Rge4 {[%clk 0:00:54.5]} 1-0

[Event "Late-Titled-Tuesday-Blitz-September-12-2023"]
[Site "Chess.com"]
[Date "2023.09.12"]
[Round "1"]
[White "seramoral"]
[Black "picturesquecheck"]
[Result "1-0"]
[WhiteElo "2625"]
[BlackElo "2320"]
[TimeControl "180+1"]
[EndTime "14:06:29 PDT"]
[Termination "seramoral won by checkmate"]

1. c4 {[%clk 0:03:00.3]} 1... c6 {[%clk 0:02:57.9]} 2. e4 {[%clk 0:02:59.6]}
2... d5 {[%clk 0:02:57.5]} 3. exd5 {[%clk 0:02:59.2]} 3... cxd5 {[%clk
0:02:58.4]} 4. d4 {[%clk 0:02:59.4]} 4... Nf6 {[%clk 0:02:58]} 5. Nc3 {[%clk
0:02:59.5]} 5... Nc6 {[%clk 0:02:55.4]} 6. Bg5 {[%clk 0:02:59.1]} 6... dxc4
{[%clk 0:02:54.1]} 7. Bxc4 {[%clk 0:02:58.7]} 7... e6 {[%clk 0:02:29]} 8. Nf3
{[%clk 0:02:52.1]} 8... Bb4 {[%clk 0:02:28.8]} 9. O-O {[%clk 0:02:48.9]} 9... h6
{[%clk 0:02:28.6]} 10. Bxf6 {[%clk 0:02:40.4]} 10... Qxf6 {[%clk 0:02:29.5]} 11.
d5 {[%clk 0:02:40.4]} 11... Bxc3 {[%clk 0:02:22.3]} 12. dxc6 {[%clk 0:02:39.1]}
12... Bxb2 {[%clk 0:02:11.4]} 13. cxb7 {[%clk 0:02:37.7]} 13... Bxb7 {[%clk
0:02:09.8]} 14. Qa4+ {[%clk 0:02:36]} 14... Kf8 {[%clk 0:02:04.3]} 15. Qb4+
{[%clk 0:02:30.8]} 15... Kg8 {[%clk 0:01:23]} 16. Qxb7 {[%clk 0:02:29.9]} 16...
Kh7 {[%clk 0:01:12.3]} 17. Rab1 {[%clk 0:02:24.8]} 17... Rhb8 {[%clk 0:01:12.1]}
18. Qe4+ {[%clk 0:02:23.4]} 18... g6 {[%clk 0:01:12.3]} 19. Rfd1 {[%clk
0:02:16.2]} 19... Bc3 {[%clk 0:01:06.2]} 20. h4 {[%clk 0:02:12.2]} 20... Rxb1
{[%clk 0:00:52.8]} 21. Rxb1 {[%clk 0:02:10.4]} 21... Rc8 {[%clk 0:00:50.9]} 22.
Rb7 {[%clk 0:02:07.6]} 22... Kg8 {[%clk 0:00:46.7]} 23. Rxa7 {[%clk 0:01:59.5]}
23... Bb4 {[%clk 0:00:41]} 24. a4 {[%clk 0:01:52.5]} 24... Qa1+ {[%clk
0:00:34.8]} 25. Kh2 {[%clk 0:01:51.7]} 25... Bd6+ {[%clk 0:00:33.9]} 26. g3
{[%clk 0:01:47.9]} 26... Qb2 {[%clk 0:00:33]} 27. Qe2 {[%clk 0:01:35.1]} 27...
Qb6 {[%clk 0:00:19.2]} 28. Rxf7 {[%clk 0:01:29]} 28... Kxf7 {[%clk 0:00:17.7]}
29. Qxe6+ {[%clk 0:01:28.8]} 29... Kg7 {[%clk 0:00:17.9]} 30. Qd7+ {[%clk
0:00:30.3]} 30... Kf6 {[%clk 0:00:15.2]} 31. Qf7# {[%clk 0:00:29.6]} 1-0

[Event "Late-Titled-Tuesday-Blitz-September-12-2023"]
[Site "Chess.com"]
[Date "2023.09.12"]
[Round "1"]
[White "AlexanderL"]
[Black "szachmistrz2500"]
[Result "1-0"]
[WhiteElo "2863"]
[BlackElo "2456"]
[TimeControl "180+1"]
[EndTime "14:06:34 PDT"]
[Termination "AlexanderL won by resignation"]

1. Nf3 {[%clk 0:02:59.9]} 1... c5 {[%clk 0:02:59.2]} 2. d4 {[%clk 0:02:59.7]}
2... cxd4 {[%clk 0:02:58.7]} 3. c3 {[%clk 0:03:00.2]} 3... dxc3 {[%clk
0:02:58.3]} 4. Nxc3 {[%clk 0:03:01.1]} 4... Nf6 {[%clk 0:02:53]} 5. e4 {[%clk
0:03:01]} 5... Nc6 {[%clk 0:02:48]} 6. Bc4 {[%clk 0:03:00.3]} 6... d6 {[%clk
0:02:43.2]} 7. e5 {[%clk 0:03:00.3]} 7... Ng4 {[%clk 0:02:16.3]} 8. e6 {[%clk
0:02:59.7]} 8... Bxe6 {[%clk 0:02:15.4]} 9. Bxe6 {[%clk 0:02:58.7]} 9... fxe6
{[%clk 0:02:15.7]} 10. Ng5 {[%clk 0:02:58.7]} 10... Nf6 {[%clk 0:02:09.1]} 11.
Nxe6 {[%clk 0:02:57]} 11... Qd7 {[%clk 0:02:09.2]} 12. Qe2 {[%clk 0:02:56.3]}
12... Nd8 {[%clk 0:01:57.7]} 13. Nxd8 {[%clk 0:02:48.5]} 13... Rxd8 {[%clk
0:01:55.4]} 14. O-O {[%clk 0:02:49]} 14... g6 {[%clk 0:01:44.1]} 15. Re1 {[%clk
0:02:48.1]} 15... Bg7 {[%clk 0:01:44.1]} 16. Bg5 {[%clk 0:02:48]} 16... a6
{[%clk 0:01:29.1]} 17. Rad1 {[%clk 0:02:41.7]} 17... b5 {[%clk 0:01:24.5]} 18.
Nd5 {[%clk 0:02:31.7]} 18... Nxd5 {[%clk 0:01:13.3]} 19. Rxd5 {[%clk 0:02:32.6]}
19... O-O {[%clk 0:01:08.3]} 20. Qe6+ {[%clk 0:01:57.5]} 20... Qxe6 {[%clk
0:01:00.4]} 21. Rxe6 {[%clk 0:01:58.4]} 21... Bf6 {[%clk 0:00:53.6]} 22. Bxf6
{[%clk 0:01:57.6]} 22... Rxf6 {[%clk 0:00:49.9]} 23. Rxe7 {[%clk 0:01:57.4]}
23... Rc8 {[%clk 0:00:50.3]} 24. f3 {[%clk 0:01:45.6]} 24... Rc2 {[%clk
0:00:46.9]} 25. Rd1 {[%clk 0:01:30.4]} 25... Rf7 {[%clk 0:00:33.3]} 26. Rxf7
{[%clk 0:01:26.7]} 26... Kxf7 {[%clk 0:00:33.3]} 27. Rxd6 {[%clk 0:01:27.3]}
27... a5 {[%clk 0:00:31.2]} 28. Rd7+ {[%clk 0:01:19.9]} 28... Kf6 {[%clk
0:00:22.2]} 29. Rxh7 {[%clk 0:01:17.9]} 29... Rxb2 {[%clk 0:00:22.2]} 30. a3
{[%clk 0:01:18.2]} 30... Rb3 {[%clk 0:00:17.5]} 31. Rb7 {[%clk 0:01:18]} 31...
Rb2 {[%clk 0:00:13.9]} 32. h4 {[%clk 0:01:13.7]} 32... Kf5 {[%clk 0:00:12.9]}
33. Kh2 {[%clk 0:01:13.6]} 33... Kf4 {[%clk 0:00:13.2]} 34. Rb6 {[%clk
0:01:12.7]} 34... a4 {[%clk 0:00:10.7]} 35. Rxg6 {[%clk 0:01:08.1]} 35... b4
{[%clk 0:00:06.8]} 36. axb4 {[%clk 0:01:08.1]} 36... a3 {[%clk 0:00:07.2]} 37.
Ra6 {[%clk 0:01:08]} 37... a2 {[%clk 0:00:07.7]} 38. b5 {[%clk 0:01:06.7]} 38...
Ke5 {[%clk 0:00:05.3]} 39. h5 {[%clk 0:01:04.5]} 39... Kf5 {[%clk 0:00:05.3]}
40. h6 {[%clk 0:01:03.9]} 40... Rxb5 {[%clk 0:00:02.2]} 41. Rxa2 {[%clk
0:01:03.7]} 1-0

[Event "Late-Titled-Tuesday-Blitz-September-12-2023"]
[Site "Chess.com"]
[Date "2023.09.12"]
[Round "1"]
[White "Vadim_Biliy"]
[Black "ArtemDyachuk"]
[Result "0-1"]
[WhiteElo "2224"]
[BlackElo "2540"]
[TimeControl "180+1"]
[EndTime "14:06:35 PDT"]
[Termination "ArtemDyachuk won on time"]

1. d4 {[%clk 0:02:58.5]} 1... d5 {[%clk 0:02:58.8]} 2. Nf3 {[%clk 0:02:57]} 2...
Nf6 {[%clk 0:02:57.9]} 3. e3 {[%clk 0:02:56.8]} 3... c5 {[%clk 0:02:53.6]} 4. c3
{[%clk 0:02:54.5]} 4... b6 {[%clk 0:02:47.4]} 5. Be2 {[%clk 0:02:49.5]} 5... Bb7
{[%clk 0:02:47.1]} 6. O-O {[%clk 0:02:49.9]} 6... e6 {[%clk 0:02:46.9]} 7. b3
{[%clk 0:02:47.1]} 7... Bd6 {[%clk 0:02:46.6]} 8. Bb2 {[%clk 0:02:47.3]} 8...
Qc7 {[%clk 0:02:46.6]} 9. Nbd2 {[%clk 0:02:45.4]} 9... Nbd7 {[%clk 0:02:45.5]}
10. h3 {[%clk 0:02:44.2]} 10... h6 {[%clk 0:02:44.7]} 11. Rc1 {[%clk 0:02:43.7]}
11... g5 {[%clk 0:02:26.6]} 12. c4 {[%clk 0:02:26.4]} 12... g4 {[%clk
0:02:22.8]} 13. hxg4 {[%clk 0:02:24.5]} 13... Rg8 {[%clk 0:02:20.6]} 14. g5
{[%clk 0:02:20.1]} 14... hxg5 {[%clk 0:02:19.7]} 15. dxc5 {[%clk 0:02:13.7]}
15... bxc5 {[%clk 0:02:17.5]} 16. cxd5 {[%clk 0:02:08.5]} 16... g4 {[%clk
0:02:05.7]} 17. dxe6 {[%clk 0:01:49.2]} 17... gxf3 {[%clk 0:01:55.2]} 18. exd7+
{[%clk 0:01:43]} 18... Qxd7 {[%clk 0:01:55]} 19. Bxf3 {[%clk 0:01:37.4]} 19...
Qh3 {[%clk 0:01:46.3]} 20. Re1 {[%clk 0:00:53.9]} 20... Rxg2+ {[%clk 0:01:42.2]}
21. Kf1 {[%clk 0:00:53.7]} 21... Ng4 {[%clk 0:01:18.4]} 22. Bxg2 {[%clk
0:00:17.6]} 22... Qxg2+ {[%clk 0:01:12.5]} 23. Ke2 {[%clk 0:00:17.7]} 23...
O-O-O {[%clk 0:01:08.3]} 24. Rf1 {[%clk 0:00:14.2]} 24... Be7 {[%clk 0:00:46.1]}
25. Rxc5+ {[%clk 0:00:09.6]} 25... Bxc5 {[%clk 0:00:44.9]} 26. Qc2 {[%clk
0:00:09.8]} 26... Ba6+ {[%clk 0:00:35.2]} 27. Nc4 {[%clk 0:00:08.2]} 27... Nxe3
{[%clk 0:00:33.9]} 0-1

[Event "Late-Titled-Tuesday-Blitz-September-12-2023"]
[Site "Chess.com"]
[Date "2023.09.12"]
[Round "1"]
[White "FeketeBarika"]
[Black "Athanasios2"]
[Result "0-1"]
[WhiteElo "2386"]
[BlackElo "2715"]
[TimeControl "180+1"]
[EndTime "14:06:36 PDT"]
[Termination "Athanasios2 won by resignation"]

1. Nf3 {[%clk 0:02:59.7]} 1... d5 {[%clk 0:02:59.8]} 2. g3 {[%clk 0:03:00.6]}
2... Nf6 {[%clk 0:03:00]} 3. Bg2 {[%clk 0:03:00.2]} 3... c5 {[%clk 0:03:00.4]}
4. c4 {[%clk 0:02:55.4]} 4... d4 {[%clk 0:02:59.4]} 5. e3 {[%clk 0:02:54.3]}
5... Nc6 {[%clk 0:02:58.9]} 6. exd4 {[%clk 0:02:50.4]} 6... cxd4 {[%clk
0:02:55.2]} 7. d3 {[%clk 0:02:51.3]} 7... e5 {[%clk 0:02:54.1]} 8. O-O {[%clk
0:02:47.8]} 8... Bd6 {[%clk 0:02:52.4]} 9. Re1 {[%clk 0:02:39.1]} 9... O-O
{[%clk 0:02:50.2]} 10. a3 {[%clk 0:02:31.8]} 10... a5 {[%clk 0:02:48.6]} 11. b3
{[%clk 0:01:49.2]} 11... h6 {[%clk 0:02:34.1]} 12. h3 {[%clk 0:01:48.5]} 12...
Re8 {[%clk 0:02:32.4]} 13. Nbd2 {[%clk 0:01:35.7]} 13... Bf5 {[%clk 0:02:29.2]}
14. Qc2 {[%clk 0:01:17.7]} 14... Rc8 {[%clk 0:02:17.6]} 15. Bb2 {[%clk
0:01:08.4]} 15... Qb6 {[%clk 0:02:11.3]} 16. Rac1 {[%clk 0:01:05.8]} 16... Nd7
{[%clk 0:02:07.5]} 17. Nh4 {[%clk 0:01:03]} 17... Bh7 {[%clk 0:02:07.3]} 18. Ne4
{[%clk 0:01:03.4]} 18... Be7 {[%clk 0:02:06.2]} 19. c5 {[%clk 0:00:59.1]} 19...
Qc7 {[%clk 0:02:03.4]} 20. Qc4 {[%clk 0:00:41.8]} 20... Bxh4 {[%clk 0:01:54.9]}
21. gxh4 {[%clk 0:00:28]} 21... Re6 {[%clk 0:01:43.2]} 22. b4 {[%clk 0:00:23.9]}
22... axb4 {[%clk 0:01:40]} 23. axb4 {[%clk 0:00:23.4]} 23... Bxe4 {[%clk
0:01:31.3]} 24. Bxe4 {[%clk 0:00:22.6]} 24... Ne7 {[%clk 0:01:30.3]} 25. Kh1
{[%clk 0:00:19.9]} 25... Nf6 {[%clk 0:01:25.1]} 26. Bf3 {[%clk 0:00:17.3]} 26...
Nf5 {[%clk 0:01:12.7]} 27. h5 {[%clk 0:00:17.3]} 27... Nh4 {[%clk 0:01:11.5]}
28. Be4 {[%clk 0:00:15.5]} 28... Nxe4 {[%clk 0:01:09.8]} 29. Rxe4 {[%clk
0:00:16.4]} 29... Qe7 {[%clk 0:01:10.2]} 30. Rg1 {[%clk 0:00:15.2]} 30... Nf3
{[%clk 0:01:05.9]} 31. Rg3 {[%clk 0:00:14.7]} 31... Nd2 {[%clk 0:01:05.5]} 32.
Qc2 {[%clk 0:00:11.1]} 32... Nxe4 {[%clk 0:01:05.4]} 33. dxe4 {[%clk 0:00:12]}
33... b6 {[%clk 0:01:04.6]} 34. Qd2 {[%clk 0:00:10.3]} 34... bxc5 {[%clk
0:01:04.5]} 35. bxc5 {[%clk 0:00:10.7]} 35... Qxc5 {[%clk 0:01:04.2]} 36. Kh2
{[%clk 0:00:09.8]} 36... Qc2 {[%clk 0:01:03.9]} 37. Qb4 {[%clk 0:00:09.4]} 37...
Qxf2+ {[%clk 0:01:01.6]} 38. Rg2 {[%clk 0:00:08.6]} 38... Qf4+ {[%clk
0:01:01.9]} 39. Kh1 {[%clk 0:00:09.1]} 39... Qxe4 {[%clk 0:01:01.2]} 0-1